[Event "*** Titled Tuesday 3|2 Blitz"]
[Site "Chess.com"]
[Date "2016.01.05"]
[Round "9"]
[White "pedromartinez91"]
[Black "ftorodent"]
[Result "0-1"]
[WhiteElo "2072"]
[BlackElo "2310"]
[TimeControl "180+2"]
[EndTime "12:53:54 PST"]
[Termination "ftorodent won by checkmate"]

1. e3 {[%clk 0:03:01.9]} 1... d5 {[%clk 0:02:59.9]} 2. b3 {[%clk 0:03:02.9]}
2... Nf6 {[%clk 0:02:59.1]} 3. Nf3 {[%clk 0:03:03.8]} 3... Bg4 {[%clk
0:02:54.9]} 4. Bb2 {[%clk 0:03:04.3]} 4... Nbd7 {[%clk 0:02:54]} 5. h3 {[%clk
0:03:02.3]} 5... Bh5 {[%clk 0:02:49.6]} 6. Be2 {[%clk 0:03:01]} 6... e6 {[%clk
0:02:50.2]} 7. c4 {[%clk 0:03:00.2]} 7... c6 {[%clk 0:02:50.5]} 8. d3 {[%clk
0:02:44.8]} 8... Bb4+ {[%clk 0:02:49.8]} 9. Nbd2 {[%clk 0:02:43.8]} 9... Bxf3
{[%clk 0:02:37.3]} 10. Bxf3 {[%clk 0:02:37.5]} 10... Nc5 {[%clk 0:02:34.3]} 11.
Ke2 {[%clk 0:02:14.4]} 11... Nxd3 {[%clk 0:02:29.7]} 12. Kxd3 {[%clk 0:02:13.7]}
12... dxc4+ {[%clk 0:02:30.6]} 13. Kc2 {[%clk 0:02:13.1]} 13... Qd3+ {[%clk
0:02:30]} 14. Kc1 {[%clk 0:02:10.9]} 14... c3 {[%clk 0:02:30.5]} 15. Ne4 {[%clk
0:01:47.4]} 15... Qxd1+ {[%clk 0:02:12.5]} 16. Rxd1 {[%clk 0:01:45.8]} 16...
Nxe4 {[%clk 0:02:11.6]} 17. Bxe4 {[%clk 0:01:43.1]} 17... Ke7 {[%clk 0:02:12.8]}
18. a3 {[%clk 0:01:37.8]} 18... cxb2+ {[%clk 0:02:13.1]} 19. Kxb2 {[%clk
0:01:37.4]} 19... Bd6 {[%clk 0:02:14.2]} 20. Rac1 {[%clk 0:01:33.5]} 20... Rhd8
{[%clk 0:02:10.6]} 21. b4 {[%clk 0:01:29.8]} 21... a6 {[%clk 0:02:08.5]} 22. Kb3
{[%clk 0:01:29]} 22... f5 {[%clk 0:02:07.4]} 23. Bf3 {[%clk 0:01:27.9]} 23...
Be5 {[%clk 0:02:02.3]} 24. Rxd8 {[%clk 0:01:25.6]} 24... Rxd8 {[%clk 0:02:02.9]}
25. Rd1 {[%clk 0:01:27.2]} 25... Ra8 {[%clk 0:02:03.1]} 26. a4 {[%clk
0:01:21.8]} 26... Rc8 {[%clk 0:01:57.9]} 27. Rd3 {[%clk 0:01:12.1]} 27... g6
{[%clk 0:01:54.8]} 28. g3 {[%clk 0:00:51.7]} 28... Bd6 {[%clk 0:01:55]} 29. e4
{[%clk 0:00:49.4]} 29... f4 {[%clk 0:01:53.2]} 30. Bg4 {[%clk 0:00:48.6]} 30...
Rf8 {[%clk 0:01:50.9]} 31. h4 {[%clk 0:00:25.4]} 31... h5 {[%clk 0:01:49.8]} 32.
Bh3 {[%clk 0:00:25.1]} 32... fxg3 {[%clk 0:01:50.9]} 33. fxg3 {[%clk 0:00:25.1]}
33... Rf2 {[%clk 0:01:51.3]} 34. Kc3 {[%clk 0:00:11.5]} 34... Be5+ {[%clk
0:01:50]} 35. Kb3 {[%clk 0:00:11.9]} 35... Re2 {[%clk 0:01:40.2]} 36. g4 {[%clk
0:00:06.7]} 36... Rxe4 {[%clk 0:01:39.5]} 37. gxh5 {[%clk 0:00:07.8]} 37... gxh5
{[%clk 0:01:40.6]} 38. Bg2 {[%clk 0:00:08.6]} 38... Rxh4 {[%clk 0:01:38.2]} 39.
b5 {[%clk 0:00:10.1]} 39... axb5 {[%clk 0:01:38.6]} 40. axb5 {[%clk 0:00:10.7]}
40... cxb5 {[%clk 0:01:39.5]} 41. Bxb7 {[%clk 0:00:12.2]} 41... b4 {[%clk
0:01:37.7]} 42. Bc8 {[%clk 0:00:11.2]} 42... Re4 {[%clk 0:01:32.7]} 43. Rd7+
{[%clk 0:00:06.3]} 43... Kf6 {[%clk 0:01:33.7]} 44. Rh7 {[%clk 0:00:07.8]} 44...
h4 {[%clk 0:01:34.3]} 45. Rh6+ {[%clk 0:00:07.5]} 45... Kg5 {[%clk 0:01:31.5]}
46. Rxe6 {[%clk 0:00:08.9]} 46... h3 {[%clk 0:01:32]} 47. Bb7 {[%clk 0:00:09.6]}
47... Re3+ {[%clk 0:01:26.8]} 48. Kc2 {[%clk 0:00:10.2]} 48... b3+ {[%clk
0:01:26.8]} 49. Kb1 {[%clk 0:00:10.1]} 49... Re1# {[%clk 0:01:26.8]} 0-1

[Event "*** Titled Tuesday 3|2 Blitz"]
[Site "Chess.com"]
[Date "2016.01.05"]
[Round "9"]
[White "jk13"]
[Black "Iball95"]
[Result "1-0"]
[WhiteElo "2374"]
[BlackElo "2391"]
[TimeControl "180+2"]
[EndTime "12:54:00 PST"]
[Termination "jk13 won by resignation"]

1. e4 {[%clk 0:03:01.9]} 1... e5 {[%clk 0:02:52.2]} 2. Nf3 {[%clk 0:03:02.5]}
2... Nc6 {[%clk 0:02:53.1]} 3. Bc4 {[%clk 0:03:04.1]} 3... Bc5 {[%clk
0:02:52.8]} 4. c3 {[%clk 0:03:05.6]} 4... Nf6 {[%clk 0:02:54.1]} 5. d3 {[%clk
0:03:07.1]} 5... d6 {[%clk 0:02:52.8]} 6. Bb3 {[%clk 0:03:08.6]} 6... O-O {[%clk
0:02:52]} 7. h3 {[%clk 0:03:10.2]} 7... h6 {[%clk 0:02:50.3]} 8. O-O {[%clk
0:03:11.7]} 8... a6 {[%clk 0:02:50.9]} 9. Re1 {[%clk 0:03:13.2]} 9... Ba7 {[%clk
0:02:44.6]} 10. Nbd2 {[%clk 0:03:14.6]} 10... Be6 {[%clk 0:02:42.9]} 11. Bc2
{[%clk 0:03:15.6]} 11... d5 {[%clk 0:02:41.4]} 12. Nh2 {[%clk 0:03:10.7]} 12...
Qd7 {[%clk 0:02:33.3]} 13. Qf3 {[%clk 0:03:11.1]} 13... dxe4 {[%clk 0:02:28.6]}
14. dxe4 {[%clk 0:03:11.3]} 14... Ne7 {[%clk 0:02:22]} 15. Ndf1 {[%clk
0:03:12.3]} 15... Nh7 {[%clk 0:02:12.7]} 16. Ng3 {[%clk 0:03:08]} 16... Ng5
{[%clk 0:02:02.6]} 17. Bxg5 {[%clk 0:02:57.7]} 17... hxg5 {[%clk 0:02:04.5]} 18.
Rad1 {[%clk 0:02:52.1]} 18... Qc6 {[%clk 0:02:00.1]} 19. Qh5 {[%clk 0:02:43.6]}
19... f6 {[%clk 0:01:51.6]} 20. Rd2 {[%clk 0:02:25]} 20... Rad8 {[%clk
0:01:49.7]} 21. Red1 {[%clk 0:02:22.6]} 21... Rxd2 {[%clk 0:01:49.8]} 22. Rxd2
{[%clk 0:02:24.5]} 22... Bxa2 {[%clk 0:01:40.4]} 23. h4 {[%clk 0:02:06.2]} 23...
Bf7 {[%clk 0:01:36.9]} 24. Qg4 {[%clk 0:02:06.4]} 24... Be6 {[%clk 0:01:22.8]}
25. Qh5 {[%clk 0:02:06.4]} 25... gxh4 {[%clk 0:01:16]} 26. Qxh4 {[%clk
0:02:08.3]} 26... Ng6 {[%clk 0:01:15.7]} 27. Qh5 {[%clk 0:02:06.5]} 27... Nf4
{[%clk 0:01:16.4]} 28. Qd1 {[%clk 0:02:08]} 28... Qc5 {[%clk 0:01:08.8]} 29. Bb3
{[%clk 0:02:04.7]} 29... b5 {[%clk 0:00:49.4]} 30. Bxe6+ {[%clk 0:01:46.3]}
30... Nxe6 {[%clk 0:00:51.3]} 31. Nf5 {[%clk 0:01:47.6]} 31... Ng5 {[%clk
0:00:32.8]} 32. Qg4 {[%clk 0:01:35]} 32... Rf7 {[%clk 0:00:21.5]} 33. Nf3 {[%clk
0:01:25.6]} 33... Nxf3+ {[%clk 0:00:19.5]} 34. Qxf3 {[%clk 0:01:27.5]} 34... Qf8
{[%clk 0:00:13.1]} 35. Qg4 {[%clk 0:01:25.5]} 35... Kh7 {[%clk 0:00:11.4]} 36.
Rd3 {[%clk 0:01:25.4]} 36... g5 {[%clk 0:00:08.1]} 37. Rh3+ {[%clk 0:01:23.9]}
37... Kg8 {[%clk 0:00:09.5]} 38. Qh5 {[%clk 0:01:21.6]} 38... Rg7 {[%clk
0:00:11]} 39. Qh8+ {[%clk 0:01:08.1]} 39... Kf7 {[%clk 0:00:11.4]} 40. Qxf8+
{[%clk 0:01:07.2]} 40... Kxf8 {[%clk 0:00:13.3]} 41. Nxg7 {[%clk 0:01:08.1]}
41... Kxg7 {[%clk 0:00:15.2]} 42. Rd3 {[%clk 0:01:09.2]} 42... Bb6 {[%clk
0:00:15.6]} 43. Rd7+ {[%clk 0:01:11.1]} 43... Kg6 {[%clk 0:00:16.5]} 44. g4
{[%clk 0:01:12.4]} 44... a5 {[%clk 0:00:15.9]} 45. Kf1 {[%clk 0:01:12.5]} 45...
b4 {[%clk 0:00:17.2]} 46. cxb4 {[%clk 0:01:12]} 46... axb4 {[%clk 0:00:19.1]}
47. f3 {[%clk 0:01:12.1]} 47... Bd4 {[%clk 0:00:18.7]} 48. b3 {[%clk 0:01:11.8]}
48... c5 {[%clk 0:00:19.2]} 49. Ke2 {[%clk 0:01:13.3]} 49... c4 {[%clk
0:00:19.7]} 50. bxc4 {[%clk 0:01:13]} 50... b3 {[%clk 0:00:21.3]} 51. Rb7 {[%clk
0:01:14.2]} 51... b2 {[%clk 0:00:22.8]} 52. Kd3 {[%clk 0:01:15.4]} 52... Kh6
{[%clk 0:00:19.4]} 53. Kc2 {[%clk 0:01:14.2]} 53... Kg6 {[%clk 0:00:19.2]} 54.
Kb1 {[%clk 0:01:15.1]} 54... Kh6 {[%clk 0:00:19.7]} 55. Ka2 {[%clk 0:01:16.2]}
55... Kg6 {[%clk 0:00:20.2]} 56. Ka3 {[%clk 0:01:17.3]} 56... Kh6 {[%clk
0:00:20.3]} 57. Rxb2 {[%clk 0:01:18]} 57... Bxb2+ {[%clk 0:00:20.9]} 58. Kxb2
{[%clk 0:01:18.9]} 58... Kg6 {[%clk 0:00:22.8]} 59. Kb3 {[%clk 0:01:20.2]} 59...
Kf7 {[%clk 0:00:24.7]} 60. Kb4 {[%clk 0:01:22.1]} 60... Ke7 {[%clk 0:00:26.6]}
61. Kc5 {[%clk 0:01:21.8]} 61... Kd7 {[%clk 0:00:28.5]} 62. Kb6 {[%clk
0:01:22.6]} 1-0

[Event "*** Titled Tuesday 3|2 Blitz"]
[Site "Chess.com"]
[Date "2016.01.05"]
[Round "9"]
[White "Vorenus_Lucius"]
[Black "pKiLz5Rn9b"]
[Result "1-0"]
[WhiteElo "2508"]
[BlackElo "2365"]
[TimeControl "180+2"]
[EndTime "12:54:07 PST"]
[Termination "Vorenus_Lucius won by resignation"]

1. d4 {[%clk 0:03:01.9]} 1... e6 {[%clk 0:03:00.8]} 2. c4 {[%clk 0:02:59.7]}
2... Nf6 {[%clk 0:03:02]} 3. Nf3 {[%clk 0:03:00]} 3... b6 {[%clk 0:03:02.9]} 4.
g3 {[%clk 0:03:00.1]} 4... Bb7 {[%clk 0:03:02.1]} 5. Bg2 {[%clk 0:03:01.1]} 5...
Be7 {[%clk 0:03:02.3]} 6. O-O {[%clk 0:03:02.3]} 6... d5 {[%clk 0:03:02.5]} 7.
cxd5 {[%clk 0:02:49.4]} 7... exd5 {[%clk 0:03:03.2]} 8. Nc3 {[%clk 0:02:50.3]}
8... O-O {[%clk 0:03:02.7]} 9. Bf4 {[%clk 0:02:50.8]} 9... Na6 {[%clk
0:03:03.8]} 10. Rc1 {[%clk 0:02:51.3]} 10... c5 {[%clk 0:03:05.4]} 11. Ne5
{[%clk 0:02:45.2]} 11... Re8 {[%clk 0:02:58]} 12. Nb5 {[%clk 0:02:15.7]} 12...
Qc8 {[%clk 0:02:48.2]} 13. Qa4 {[%clk 0:01:55.5]} 13... Qe6 {[%clk 0:02:41.9]}
14. Rfe1 {[%clk 0:01:47.8]} 14... h6 {[%clk 0:02:34.5]} 15. a3 {[%clk
0:01:44.1]} 15... Ne4 {[%clk 0:02:24]} 16. dxc5 {[%clk 0:01:29.2]} 16... Nexc5
{[%clk 0:02:12.7]} 17. Qd1 {[%clk 0:01:25]} 17... Bf6 {[%clk 0:02:02.8]} 18. Nd4
{[%clk 0:01:19.3]} 18... Qe7 {[%clk 0:02:03.9]} 19. Nec6 {[%clk 0:01:10.8]}
19... Qd7 {[%clk 0:01:50.9]} 20. b4 {[%clk 0:01:11.6]} 20... Ne4 {[%clk
0:01:41.4]} 21. Qd3 {[%clk 0:00:58.5]} 21... Ng5 {[%clk 0:01:08.9]} 22. Rc2
{[%clk 0:00:48.5]} 22... Ne6 {[%clk 0:01:06.4]} 23. Rec1 {[%clk 0:00:46.2]}
23... Rec8 {[%clk 0:00:42.3]} 24. Ne5 {[%clk 0:00:40.9]} 24... Bxe5 {[%clk
0:00:41.4]} 25. Bxe5 {[%clk 0:00:41.6]} 25... Rxc2 {[%clk 0:00:27]} 26. Rxc2
{[%clk 0:00:42.2]} 26... Nac7 {[%clk 0:00:24.3]} 27. Bh3 {[%clk 0:00:39.5]}
27... Rc8 {[%clk 0:00:21.4]} 28. Bxc7 {[%clk 0:00:26.9]} 28... Rxc7 {[%clk
0:00:20.3]} 29. Rxc7 {[%clk 0:00:23.5]} 29... Qxc7 {[%clk 0:00:22.2]} 30. Nxe6
{[%clk 0:00:24.2]} 30... Qc1+ {[%clk 0:00:11.5]} 31. Kg2 {[%clk 0:00:25]} 31...
d4+ {[%clk 0:00:12.8]} 32. f3 {[%clk 0:00:25.7]} 32... fxe6 {[%clk 0:00:13.2]}
33. Bxe6+ {[%clk 0:00:26.2]} 33... Kh8 {[%clk 0:00:07.9]} 34. Qxd4 {[%clk
0:00:23.9]} 34... Qc7 {[%clk 0:00:09.1]} 35. Qf4 {[%clk 0:00:18.9]} 35... Qe7
{[%clk 0:00:05.8]} 36. Qf7 {[%clk 0:00:19.1]} 36... Qd8 {[%clk 0:00:04.8]} 37.
Qxb7 {[%clk 0:00:19.2]} 1-0

[Event "*** Titled Tuesday 3|2 Blitz"]
[Site "Chess.com"]
[Date "2016.01.05"]
[Round "9"]
[White "chessdude"]
[Black "MinhGTrAn"]
[Result "1-0"]
[WhiteElo "2324"]
[BlackElo "2552"]
[TimeControl "180+2"]
[EndTime "12:54:28 PST"]
[Termination "chessdude won on time"]

1. e4 {[%clk 0:02:37.7]} 1... c5 {[%clk 0:02:53.3]} 2. Nf3 {[%clk 0:02:38.1]}
2... d6 {[%clk 0:02:54.6]} 3. d4 {[%clk 0:02:39.5]} 3... cxd4 {[%clk 0:02:56.5]}
4. Nxd4 {[%clk 0:02:41.1]} 4... Nf6 {[%clk 0:02:58.4]} 5. Nc3 {[%clk 0:02:42.5]}
5... a6 {[%clk 0:03:00]} 6. Be3 {[%clk 0:02:42.5]} 6... e5 {[%clk 0:03:01.2]} 7.
Nb3 {[%clk 0:02:43.8]} 7... Be6 {[%clk 0:03:02]} 8. f3 {[%clk 0:02:44.8]} 8...
h5 {[%clk 0:02:58.8]} 9. Qd2 {[%clk 0:02:45]} 9... Nbd7 {[%clk 0:02:59.8]} 10.
Nd5 {[%clk 0:02:45.8]} 10... Nxd5 {[%clk 0:02:56]} 11. exd5 {[%clk 0:02:47.3]}
11... Bf5 {[%clk 0:02:57.8]} 12. Bd3 {[%clk 0:02:46.6]} 12... Bxd3 {[%clk
0:02:53.2]} 13. Qxd3 {[%clk 0:02:47.6]} 13... Be7 {[%clk 0:02:38.7]} 14. O-O
{[%clk 0:02:48.6]} 14... O-O {[%clk 0:02:39.8]} 15. c4 {[%clk 0:02:49.6]} 15...
Rc8 {[%clk 0:02:40.7]} 16. Rac1 {[%clk 0:02:50]} 16... Bf6 {[%clk 0:02:31.3]}
17. Rc2 {[%clk 0:02:47.1]} 17... Qe7 {[%clk 0:02:18.4]} 18. Bf2 {[%clk
0:02:44.2]} 18... g6 {[%clk 0:02:05.5]} 19. Nd2 {[%clk 0:02:42.2]} 19... Bg7
{[%clk 0:02:06.6]} 20. b4 {[%clk 0:02:40.6]} 20... f5 {[%clk 0:02:04]} 21. Re1
{[%clk 0:02:39.6]} 21... g5 {[%clk 0:01:55.7]} 22. Nb3 {[%clk 0:02:39.3]} 22...
g4 {[%clk 0:01:29.4]} 23. c5 {[%clk 0:02:38.3]} 23... gxf3 {[%clk 0:01:04.2]}
24. gxf3 {[%clk 0:02:39.1]} 24... e4 {[%clk 0:01:02.2]} 25. fxe4 {[%clk
0:02:38.5]} 25... Ne5 {[%clk 0:01:03.2]} 26. Qh3 {[%clk 0:02:36.1]} 26... fxe4
{[%clk 0:01:00.4]} 27. Rxe4 {[%clk 0:02:20.6]} 27... Qf7 {[%clk 0:00:55.3]} 28.
Qe6 {[%clk 0:02:11.6]} 28... Rce8 {[%clk 0:00:49.1]} 29. Qxf7+ {[%clk
0:02:07.3]} 29... Rxf7 {[%clk 0:00:51]} 30. Kg2 {[%clk 0:02:05.7]} 30... Rd8
{[%clk 0:00:30.2]} 31. Bg3 {[%clk 0:01:53.1]} 31... Kh7 {[%clk 0:00:12.1]} 32.
Na5 {[%clk 0:01:45.4]} 32... Nd3 {[%clk 0:00:10.1]} 33. c6 {[%clk 0:01:34.7]}
33... bxc6 {[%clk 0:00:07.6]} 34. dxc6 {[%clk 0:01:32]} 34... Be5 {[%clk
0:00:08.9]} 35. Nb7 {[%clk 0:01:25.8]} 35... Rg8 {[%clk 0:00:06.9]} 36. c7
{[%clk 0:01:04]} 36... Rc8 {[%clk 0:00:04.7]} 37. Nxd6 {[%clk 0:01:03.7]} 37...
Rcxc7 {[%clk 0:00:02.3]} 38. Rxc7 {[%clk 0:01:03.3]} 38... Rxc7 {[%clk
0:00:03.9]} 39. Bxe5 {[%clk 0:01:04]} 39... Rc2+ {[%clk 0:00:05.4]} 40. Kg3
{[%clk 0:01:01.4]} 40... Rxa2 {[%clk 0:00:07]} 41. Bf4 {[%clk 0:00:47.6]} 41...
Ra4 {[%clk 0:00:02.5]} 42. Re7+ {[%clk 0:00:44.8]} 42... Kg6 {[%clk 0:00:03.4]}
43. Re6+ {[%clk 0:00:45.6]} 43... Kg7 {[%clk 0:00:04]} 44. Bh6+ {[%clk
0:00:42.5]} 44... Kh7 {[%clk 0:00:04.3]} 45. Ne4 {[%clk 0:00:42.4]} 1-0

[Event "*** Titled Tuesday 3|2 Blitz"]
[Site "Chess.com"]
[Date "2016.01.05"]
[Round "9"]
[White "rdclayton"]
[Black "oskariot"]
[Result "0-1"]
[WhiteElo "2107"]
[BlackElo "2326"]
[TimeControl "180+2"]
[EndTime "12:54:35 PST"]
[Termination "oskariot won by resignation"]

1. d4 {[%clk 0:02:59.2]} 1... Nf6 {[%clk 0:03:00.8]} 2. c4 {[%clk 0:03:00]} 2...
c5 {[%clk 0:03:01.8]} 3. d5 {[%clk 0:03:00.4]} 3... b5 {[%clk 0:03:03.5]} 4.
cxb5 {[%clk 0:03:01.7]} 4... a6 {[%clk 0:03:05.1]} 5. bxa6 {[%clk 0:03:03.1]}
5... g6 {[%clk 0:03:06.8]} 6. Nc3 {[%clk 0:03:04.3]} 6... Bxa6 {[%clk
0:03:08.5]} 7. e4 {[%clk 0:03:05.1]} 7... Bxf1 {[%clk 0:03:10.4]} 8. Kxf1 {[%clk
0:03:07]} 8... d6 {[%clk 0:03:12.3]} 9. g3 {[%clk 0:03:08.3]} 9... Bg7 {[%clk
0:03:13.4]} 10. Kg2 {[%clk 0:03:09.1]} 10... O-O {[%clk 0:03:15]} 11. Nge2
{[%clk 0:03:10]} 11... Nbd7 {[%clk 0:03:13.8]} 12. h3 {[%clk 0:03:10.9]} 12...
Ra6 {[%clk 0:03:14.6]} 13. Qd3 {[%clk 0:02:51.4]} 13... Qa8 {[%clk 0:03:14.4]}
14. Rd1 {[%clk 0:02:50.8]} 14... Rb8 {[%clk 0:03:14.1]} 15. a4 {[%clk
0:02:25.3]} 15... Rb4 {[%clk 0:03:13.6]} 16. Qc2 {[%clk 0:02:17.2]} 16... e6
{[%clk 0:02:59.4]} 17. Rb1 {[%clk 0:01:54.3]} 17... exd5 {[%clk 0:02:41.3]} 18.
exd5 {[%clk 0:01:55.1]} 18... Nb6 {[%clk 0:02:39.9]} 19. Kg1 {[%clk 0:01:43.9]}
19... Nxa4 {[%clk 0:02:29]} 20. Nxa4 {[%clk 0:01:39.2]} 20... Raxa4 {[%clk
0:02:29.7]} 21. b3 {[%clk 0:01:27.2]} 21... Ra2 {[%clk 0:02:28.1]} 22. Bb2
{[%clk 0:01:25.8]} 22... Nxd5 {[%clk 0:02:20.9]} 23. Ra1 {[%clk 0:00:58.5]}
23... Bxb2 {[%clk 0:01:58.2]} 24. Qxb2 {[%clk 0:00:58.1]} 24... Rxa1 {[%clk
0:01:56.1]} 25. Rxa1 {[%clk 0:00:56.7]} 25... Qe8 {[%clk 0:01:56.1]} 26. Ra7
{[%clk 0:00:33.3]} 26... Re4 {[%clk 0:01:50.8]} 27. Nc3 {[%clk 0:00:26]} 27...
Re1+ {[%clk 0:01:49.4]} 28. Kh2 {[%clk 0:00:26.2]} 28... Nxc3 {[%clk 0:01:25.2]}
29. Qxc3 {[%clk 0:00:26.7]} 29... Qe4 {[%clk 0:01:26.3]} 30. Ra8+ {[%clk
0:00:18.1]} 30... Qxa8 {[%clk 0:01:26.5]} 31. Qxe1 {[%clk 0:00:19.6]} 31... Qf3
{[%clk 0:01:25.2]} 32. Kg1 {[%clk 0:00:07.1]} 32... Qxb3 {[%clk 0:01:20.8]} 33.
h4 {[%clk 0:00:08]} 33... Qe6 {[%clk 0:01:21.3]} 34. Qa5 {[%clk 0:00:08.5]}
34... h5 {[%clk 0:01:21.8]} 35. Qd8+ {[%clk 0:00:06.7]} 35... Kg7 {[%clk
0:01:22.6]} 36. Kh2 {[%clk 0:00:06.2]} 36... c4 {[%clk 0:01:22]} 37. Qc7 {[%clk
0:00:07.1]} 37... d5 {[%clk 0:01:23.4]} 38. f3 {[%clk 0:00:06]} 38... Qe2+
{[%clk 0:01:23.2]} 39. Kh3 {[%clk 0:00:07.2]} 39... Qe6+ {[%clk 0:01:24.2]} 40.
g4 {[%clk 0:00:07.5]} 40... d4 {[%clk 0:01:17.8]} 41. Kg3 {[%clk 0:00:06.1]}
41... d3 {[%clk 0:01:18.8]} 42. gxh5 {[%clk 0:00:04.3]} 42... gxh5 {[%clk
0:01:18.3]} 43. Qd8 {[%clk 0:00:04.6]} 43... c3 {[%clk 0:00:57.9]} 44. Qd4+
{[%clk 0:00:04.7]} 44... Qf6 {[%clk 0:00:58.2]} 45. Qe4 {[%clk 0:00:03.3]} 0-1

[Event "*** Titled Tuesday 3|2 Blitz"]
[Site "Chess.com"]
[Date "2016.01.05"]
[Round "9"]
[White "kikydu96"]
[Black "Rating-Schmating"]
[Result "1-0"]
[WhiteElo "2236"]
[BlackElo "2131"]
[TimeControl "180+2"]
[EndTime "12:54:46 PST"]
[Termination "kikydu96 won on time"]

1. e4 {[%clk 0:03:01.9]} 1... e6 {[%clk 0:03:01.9]} 2. d4 {[%clk 0:03:01.2]}
2... d5 {[%clk 0:03:02.1]} 3. Nc3 {[%clk 0:02:43.1]} 3... Nf6 {[%clk 0:03:02.3]}
4. e5 {[%clk 0:02:42.6]} 4... Nfd7 {[%clk 0:03:01.5]} 5. Nf3 {[%clk 0:02:39.9]}
5... c5 {[%clk 0:03:02.6]} 6. dxc5 {[%clk 0:02:37.2]} 6... Bxc5 {[%clk 0:03:03]}
7. Bd3 {[%clk 0:02:36.9]} 7... Nc6 {[%clk 0:03:02.4]} 8. Bf4 {[%clk 0:02:37.6]}
8... Qb6 {[%clk 0:03:01.7]} 9. Qd2 {[%clk 0:02:38]} 9... a6 {[%clk 0:02:59.1]}
10. O-O {[%clk 0:02:36.5]} 10... Qc7 {[%clk 0:02:53.8]} 11. Rfe1 {[%clk
0:02:34.6]} 11... b5 {[%clk 0:02:52.8]} 12. Nxd5 {[%clk 0:02:31.7]} 12... Qa7
{[%clk 0:02:28.1]} 13. Nc3 {[%clk 0:02:23]} 13... Bb7 {[%clk 0:02:28]} 14. Ne4
{[%clk 0:02:20.8]} 14... Be7 {[%clk 0:02:24.5]} 15. Nd6+ {[%clk 0:02:13.6]}
15... Bxd6 {[%clk 0:02:23.8]} 16. exd6 {[%clk 0:02:13.5]} 16... Nd4 {[%clk
0:02:24.1]} 17. Be3 {[%clk 0:02:07.5]} 17... Nxf3+ {[%clk 0:02:24.5]} 18. gxf3
{[%clk 0:01:54.2]} 18... Qb8 {[%clk 0:02:23.8]} 19. Be4 {[%clk 0:01:53.8]} 19...
Nf6 {[%clk 0:02:12.4]} 20. Rad1 {[%clk 0:01:43]} 20... O-O {[%clk 0:01:56.3]}
21. Bg5 {[%clk 0:01:23.9]} 21... Nd5 {[%clk 0:01:47.9]} 22. d7 {[%clk
0:01:16.2]} 22... f6 {[%clk 0:01:37.2]} 23. Bh4 {[%clk 0:01:01.2]} 23... Qd6
{[%clk 0:01:35.5]} 24. b3 {[%clk 0:00:58.1]} 24... b4 {[%clk 0:01:26.3]} 25. Bg3
{[%clk 0:00:52.8]} 25... Qxd7 {[%clk 0:01:25.6]} 26. Qxb4 {[%clk 0:00:53.6]}
26... Nxb4 {[%clk 0:01:19.4]} 27. Rxd7 {[%clk 0:00:53.4]} 27... Bxe4 {[%clk
0:01:20.4]} 28. Rxe4 {[%clk 0:00:53.3]} 28... Nxc2 {[%clk 0:01:10.7]} 29. Rxe6
{[%clk 0:00:53.9]} 29... Rfe8 {[%clk 0:01:06.6]} 30. Ree7 {[%clk 0:00:45.4]}
30... Rxe7 {[%clk 0:01:02.7]} 31. Rxe7 {[%clk 0:00:46.7]} 31... Nd4 {[%clk
0:01:03.1]} 32. Kg2 {[%clk 0:00:46.5]} 32... Kf8 {[%clk 0:00:57.3]} 33. Rd7
{[%clk 0:00:43.6]} 33... Nf5 {[%clk 0:00:50.8]} 34. b4 {[%clk 0:00:42.6]} 34...
Rc8 {[%clk 0:00:42.2]} 35. Ra7 {[%clk 0:00:41.9]} 35... Rc6 {[%clk 0:00:42.6]}
36. a4 {[%clk 0:00:42.9]} 36... Rb6 {[%clk 0:00:41.5]} 37. Ra8+ {[%clk
0:00:41.2]} 37... Kf7 {[%clk 0:00:41.2]} 38. Rb8 {[%clk 0:00:42.5]} 38... Rc6
{[%clk 0:00:20.8]} 39. a5 {[%clk 0:00:39.1]} 39... Nd4 {[%clk 0:00:19.4]} 40.
Rb6 {[%clk 0:00:38.2]} 40... Ke6 {[%clk 0:00:14.4]} 41. Bf4 {[%clk 0:00:37.5]}
41... Kd5 {[%clk 0:00:14]} 42. Be3 {[%clk 0:00:38.4]} 42... Nc2 {[%clk
0:00:12.1]} 43. b5 {[%clk 0:00:32.8]} 1-0